bitfinex/quotes_ETHUSD_20251130
["timestamp","ask_amount","ask_price","bid_price","bid_amount"]
[1764508807424,0.3222,3042.2,3041.3,6.5761352]
[1764508807671,0.3222,3042.2,3041.4,0.72559411]
[1764508807872,0.7831,3042.2,3041.4,7.30148531]
[1764508808073,0.3222,3042.2,3041.4,0.72559411]
[1764508808275,0.4609,3042.1,3041.4,0.72559411]
[1764508808758,0.63643714,3042.4,3041.4,0.72559411]
[1764508809364,0.4609,3042.3,3041.4,0.72559411]
[1764508809877,0.17553714,3042.4,3041.5,6.60858127]
[1764508810171,0.17553714,3042.4,3041.5,3.28785138]
[1764508810475,0.63643714,3042.4,3041.5,6.57570276]
[1764508810852,0.4609,3042.3,3041.6,0.72559411]
[1764508811457,0.17553714,3042.4,3041.6,0.72559411]
[1764508811976,0.63643714,3042.4,3041.8,0.72559411]
[1764508812272,0.17553714,3042.4,3041.8,0.72559411]
[1764508813257,0.17553714,3042.4,3041.8,0.99299411]
[1764508813566,0.17553714,3042.4,3041.8,0.72559411]
[1764508813887,0.17553714,3042.4,3042.0,0.72559411]
[1764508814183,0.63643714,3042.4,3041.9,0.72559411]
[1764508814887,0.17553714,3042.4,3041.9,0.72559411]
[1764508815182,0.4609,3042.3,3041.9,0.72559411]
[1764508815385,0.4609,3042.3,3041.2,0.86508741]
[1764508815560,0.17553714,3042.4,3041.4,0.72559411]
[1764508815899,0.17553714,3042.4,3041.7,0.72559411]
[1764508816379,3.92341013,3042.4,3041.7,0.72559411]
[1764508816692,3.92341013,3042.4,3041.0,0.86508741]
[1764508816693,0.6481,3041.8,3041.0,0.86508741]
[1764508816987,0.4654,3041.7,3040.8,0.86508741]
[1764508817288,0.6481,3040.9,3040.6,0.86508741]
[1764508817483,0.6481,3040.9,3040.5,3.28884849]
[1764508817652,1.109,3040.9,3040.4,3.28902629]
[1764508817850,3.2876352,3041.7,3040.4,3.28902629]
[1764508818053,0.6719,3041.6,3040.4,6.5780672]
[1764508818255,0.6719,3041.6,3040.4,7.44315461]
[1764508818480,0.4609,3041.5,3040.4,6.5780672]
[1764508818685,0.4609,3041.5,3040.5,0.72559411]
[1764508818950,0.1,3041.4,3040.3,3.28911818]
[1764508819277,0.4609,3041.3,3040.2,3.28922246]
[1764508819894,6.57635144,3041.2,3040.1,0.001]
[1764508820064,4.00190086,3041.2,3040.1,0.001]
[1764508820276,0.17553714,3042.4,3041.1,0.3674]
[1764508820504,0.4609,3042.3,3041.2,1.45666551]
[1764508820703,0.212,3042.2,3040.9,0.96508741]
[1764508820883,0.312,3042.2,3040.9,0.1]
[1764508821078,0.4609,3042.1,3040.9,0.1]
[1764508821278,0.4609,3042.1,3040.9,0.96508741]
[1764508821800,0.212,3042.0,3040.9,0.96508741]
[1764508822209,0.1827,3041.9,3041.1,0.72559411]
[1764508822506,3.47013132,3041.9,3041.1,0.72559411]
[1764508823110,0.212,3041.8,3041.1,0.72559411]
[1764508823419,3.49952712,3041.8,3041.1,0.72559411]
[1764508823713,0.312,3041.8,3041.0,0.72559411]
[1764508823886,0.4831,3041.7,3040.8,0.72559411]
[1764508824079,3.77083415,3041.7,3040.7,3.28871641]
[1764508824281,3.77083415,3041.7,3040.8,0.72559411]
[1764508824500,0.6951,3041.6,3040.8,0.72559411]
[1764508824912,0.6951,3041.6,3040.9,0.032885]
[1764508825080,0.212,3041.5,3040.8,0.72559411]
[1764508825421,0.212,3041.4,3040.8,0.72559411]
[1764508825714,3.77062745,3041.8,3040.8,0.72559411]
[1764508825882,0.212,3041.3,3040.9,0.032885]
[1764508826196,0.212,3041.2,3041.0,0.001]
[1764508826401,0.6535,3041.1,3041.0,0.001]
[1764508826597,0.1872,3041.4,3041.0,0.001]
[1764508826784,0.212,3041.3,3041.0,0.72659411]
[1764508826985,0.6951,3041.3,3041.1,0.03288283]
[1764508827184,0.1872,3041.4,3041.2,0.03288175]
[1764508827408,0.212,3041.3,3041.0,0.72659411]
[1764508828401,0.212,3041.3,3041.1,3.28828384]
[1764508828598,0.212,3041.2,3041.0,0.001]
[1764508828798,0.212,3041.2,3041.0,0.72659411]
[1764508829113,0.212,3041.2,3041.0,3.28939037]
[1764508829308,0.212,3041.2,3041.0,0.001]
[1764508830012,0.212,3041.1,3041.0,0.001]
[1764508830813,0.4831,3041.7,3041.0,0.001]
[1764508830992,0.212,3041.6,3041.0,0.001]
[1764508831185,0.212,3041.6,3041.0,0.03388391]
[1764508831699,0.212,3041.6,3041.0,0.001]
[1764508832016,0.4831,3041.5,3041.0,0.001]
[1764508832179,0.4663,3041.1,3041.0,0.001]
[1764508832809,0.9494,3041.1,3041.0,0.001]
[1764508833117,0.4663,3041.1,3041.0,0.001]
[1764508833277,0.9494,3041.1,3041.0,0.001]
[1764508833478,0.212,3041.1,3041.0,0.001]
[1764508833997,0.6783,3041.1,3041.0,0.001]
[1764508834576,1.1614,3041.1,3041.0,0.001]
[1764508835023,0.6783,3041.1,3041.0,0.001]
[1764508835384,0.212,3041.1,3041.0,0.001]
[1764508836919,0.4831,3041.5,3041.0,0.001]
[1764508837135,0.212,3041.4,3041.0,0.001]
[1764508837296,0.1827,3041.9,3041.0,0.001]
[1764508837297,0.4831,3042.3,3041.4,0.4975]
[1764508837619,0.212,3042.2,3041.5,0.4975]
[1764508838991,0.6951,3042.2,3041.6,3.28774329]
[1764508839319,0.6951,3042.2,3041.6,3.27802432]
[1764508839687,0.212,3042.1,3041.6,3.27802432]
[1764508839888,0.002,3042.4,3041.6,6.56576761]
[1764508840112,0.002,3042.4,3041.7,0.72559411]
[1764508840303,0.212,3042.3,3041.7,0.72559411]
[1764508840504,0.002,3042.4,3042.3,0.6781]
[1764508840819,0.002,3042.4,3042.3,1.1765]
[1764508841129,0.002,3042.4,3042.3,5.18908092]
[1764508841921,0.002,3042.4,3042.3,0.72559411]
[1764508842218,0.002,3042.4,3042.3,4.51008092]
[1764508842516,0.002,3042.4,3042.3,0.72559411]
[1764508842721,0.002,3042.4,3042.3,4.51008092]
[1764508843222,0.002,3042.4,3042.3,0.72559411]
[1764508843394,0.214,3042.4,3042.3,0.72559411]
[1764508843824,0.214,3042.4,3042.3,4.01258092]
[1764508844117,0.214,3042.4,3042.3,4.51008092]
[1764508844301,0.214,3042.4,3042.3,0.72559411]
[1764508844498,0.6803,3042.4,3042.3,0.72559411]
[1764508844900,0.214,3042.4,3042.3,4.01258092]
[1764508845210,0.214,3042.4,3042.3,0.72559411]
[1764508845537,0.002,3042.4,3042.3,4.51008092]
[1764508845840,0.002,3042.4,3042.3,4.01258092]
[1764508846134,0.214,3042.4,3042.3,4.51008092]
[1764508848015,0.214,3042.4,3042.3,0.72559411]
[1764508848204,0.214,3042.4,3042.3,4.01258092]
[1764508848535,0.002,3042.4,3042.3,4.01258092]
[1764508848740,0.214,3042.4,3042.3,0.72559411]
[1764508849512,0.4683,3042.4,3042.3,0.72559411]
[1764508849709,0.6803,3042.4,3042.3,0.72559411]
[1764508850110,1.1634,3042.4,3041.8,1.59068152]
[1764508850313,0.5897,3041.9,3041.8,0.72559411]
[1764508850501,1.2848,3041.9,3041.5,0.86608741]
[1764508850704,0.1866,3041.8,3041.5,0.001]
[1764508850901,0.3388,3041.9,3041.5,0.001]
[1764508851128,0.8219,3041.9,3041.5,3.28884147]
[1764508851443,0.8219,3041.9,3041.5,0.001]
[1764508851637,0.4831,3041.8,3041.5,0.001]
[1764508851932,0.4663,3041.6,3041.5,0.001]
[1764508852801,0.4984,3042.2,3041.5,0.4601]
[1764508853004,0.212,3042.1,3041.5,0.4601]
[1764508853325,0.212,3042.1,3041.6,0.03287743]
[1764508853527,0.212,3042.1,3041.5,0.4601]
[1764508853930,0.212,3042.1,3041.7,0.72559411]
[1764508854241,0.212,3042.1,3041.8,0.03287527]
[1764508855028,0.002,3042.4,3041.8,0.03287527]
[1764508855229,0.212,3042.0,3041.7,0.72559411]
[1764508856137,3.78730057,3042.4,3041.8,0.75846938]
[1764508856338,0.212,3042.3,3041.9,0.03287419]
[1764508856945,0.7104,3042.3,3041.9,0.03287419]
[1764508857110,0.212,3042.2,3041.8,0.72559411]
[1764508857311,0.7104,3042.2,3041.8,0.72559411]
[1764508857609,0.002,3042.4,3042.1,0.4591]
[1764508857810,0.214,3042.4,3042.3,0.4591]
[1764508858020,0.214,3042.4,3042.3,3.74608681]
[1764508858021,0.002,3042.4,3042.3,3.74608681]
[1764508858217,0.214,3042.4,3042.3,3.77895667]
[1764508858436,0.002,3042.4,3042.3,4.99605078]
[1764508860240,0.002,3042.4,3042.3,4.96318092]
[1764508860642,0.002,3042.4,3042.3,4.99605078]
[1764508861144,3.4680716,3043.8,3042.3,4.99605078]
[1764508861145,0.003,3044.6,3042.4,0.405504]
[1764508861347,0.063,3044.6,3044.1,0.1786]
[1764508861639,0.063,3044.6,3044.1,0.6201]
[1764508861956,0.215,3044.6,3044.1,0.6201]
[1764508862269,0.215,3044.6,3044.5,0.4591]
[1764508862270,0.003,3044.6,3044.5,0.4591]
[1764508862561,0.003,3044.6,3044.5,0.9506]
[1764508862722,0.1897,3047.0,3044.5,1.356104]
[1764508862909,0.1897,3047.0,3044.8,0.86518752]
[1764508863113,0.4984,3046.5,3045.1,0.405504]
[1764508863343,0.6881,3046.9,3045.2,1.07718752]
[1764508863531,0.4984,3046.5,3045.2,0.0436]
[1764508863731,0.212,3046.4,3045.4,0.405504]
[1764508863933,0.1897,3046.9,3046.3,0.1847]
[1764508864132,0.1897,3046.9,3045.5,0.4915]
[1764508864133,0.1897,3046.9,3045.5,0.7035]
[1764508864344,0.4984,3046.8,3045.7,0.72559411]
[1764508864549,0.1897,3046.9,3045.8,0.4915]
[1764508864711,0.4027,3046.9,3045.8,0.4915]
[1764508864912,0.5044,3046.6,3045.6,0.72559411]
[1764508865449,0.006,3046.6,3045.7,0.4915]
[1764508865742,3.78676426,3046.6,3045.3,0.4915]
[1764508865943,0.37867643,3046.5,3045.4,0.72559411]
[1764508866249,0.006,3046.6,3045.7,0.72559411]
[1764508866619,0.006,3046.6,3045.7,1.21709411]
[1764508867117,0.006,3046.6,3045.8,0.4915]
[1764508867339,0.006,3046.6,3045.7,0.72559411]
[1764508867616,0.5044,3046.6,3045.6,0.72559411]
[1764508868124,0.5044,3046.6,3045.3,0.4915]
[1764508868125,3.66114766,3046.5,3045.3,1.21709411]
[1764508868329,3.66114766,3046.5,3045.3,0.72559411]
[1764508868512,3.66114766,3046.5,3045.4,0.72559411]
[1764508868513,0.4984,3046.4,3045.4,0.72559411]
[1764508868831,0.6119,3045.4,3044.3,0.4915]
[1764508869042,0.4984,3046.4,3045.1,0.0436]
[1764508869043,0.213,3045.9,3045.1,0.0436]
[1764508869352,0.213,3046.1,3045.3,0.4591]
[1764508869540,0.213,3046.0,3045.3,0.4591]
[1764508869744,0.1897,3045.9,3045.1,0.0436]
[1764508870118,0.1897,3045.9,3045.1,0.76919411]
[1764508870319,0.6881,3045.9,3045.1,0.0436]
[1764508870531,0.213,3045.8,3045.1,4.05312591]
[1764508870731,0.4027,3045.9,3045.1,3.32755348]
[1764508870968,0.213,3046.2,3045.2,1.21709411]
[1764508871168,0.4984,3046.5,3045.3,0.4915]
[1764508871323,0.213,3046.2,3045.3,0.4915]
[1764508871872,0.4984,3046.5,3045.3,0.52433748]
[1764508872092,0.006,3046.6,3045.3,0.52433748]
[1764508872387,0.006,3046.6,3046.5,0.6438]
[1764508873048,0.006,3046.6,3046.5,0.4591]
[1764508873650,0.006,3046.6,3046.3,0.1847]
[1764508873855,0.006,3046.6,3046.2,0.1847]
[1764508874176,0.006,3046.6,3046.4,0.72559411]
[1764508874360,0.006,3046.6,3045.9,0.1847]
[1764508874561,0.3984,3046.5,3045.7,0.72559411]
[1764508875571,0.006,3046.6,3045.7,1.21709411]
[1764508875770,3.61716478,3046.6,3045.7,1.21709411]
[1764508875971,0.33481407,3046.6,3045.7,0.72559411]
[1764508876180,0.33481407,3046.6,3045.9,0.72559411]
[1764508876181,0.006,3046.6,3045.9,0.72559411]
[1764508876493,0.006,3046.6,3045.8,3.28320966]
[1764508876494,0.006,3046.6,3045.8,0.72559411]
[1764508876775,0.006,3046.6,3045.1,0.17343964]
[1764508876776,0.608,3045.9,3045.1,0.17343964]
[1764508876974,0.608,3045.9,3045.1,0.1406]
[1764508877191,0.213,3045.8,3045.1,0.6321]
[1764508877491,0.213,3045.8,3044.2,4.27148693]
[1764508877692,0.4846,3045.2,3044.2,3.28493528]
[1764508878004,0.4846,3045.2,3044.3,0.72559411]
[1764508878005,0.213,3045.1,3044.3,0.72559411]
[1764508878293,0.213,3045.2,3044.4,0.03284719]
[1764508878492,0.4984,3045.1,3044.1,0.1847]
[1764508878782,0.6743,3044.2,3043.6,3.28554739]
[1764508878943,0.6743,3044.2,3043.5,3.28566682]
[1764508879166,0.4982,3044.1,3043.2,0.1847]
[1764508879396,0.6743,3044.2,3043.2,0.1847]
[1764508879695,0.7112,3044.1,3043.2,0.1847]
[1764508880000,0.213,3044.1,3043.2,0.1847]
[1764508880164,0.213,3044.1,3043.3,3.28590674]
[1764508880368,0.7114,3044.1,3043.3,6.57181348]
[1764508880696,0.4984,3044.5,3043.4,0.03285798]
[1764508880883,0.39952726,3045.1,3043.4,0.4915]
[1764508880884,0.1897,3044.6,3043.4,0.4915]
[1764508881082,0.1897,3044.6,3043.4,1.21709411]
[1764508881294,0.6881,3044.6,3043.4,1.21709411]
[1764508881600,0.6881,3044.6,3043.4,0.72559411]
[1764508881767,0.4984,3044.5,3043.4,0.72559411]
[1764508882096,0.92696431,3044.5,3043.4,0.72559411]
[1764508882297,6.66943896,3044.4,3043.4,0.001]
[1764508882496,7.13063896,3044.4,3043.4,0.001]
[1764508882699,0.4612,3044.3,3043.4,0.001]
[1764508883807,0.1897,3044.6,3043.5,0.4552]
[1764508883968,3.28279696,3046.2,3043.6,0.03285582]
[1764508883969,0.1931,3044.9,3043.6,0.03285582]
[1764508884293,0.4061,3044.9,3043.9,0.72559411]
[1764508884674,0.8673,3044.9,3044.0,0.03285151]
[1764508885080,0.4612,3044.8,3044.0,0.03285151]
[1764508885900,0.4612,3044.8,3043.9,0.72559411]
[1764508886273,0.4612,3044.8,3044.1,0.72559411]
[1764508887115,0.4612,3044.8,3044.1,0.91589411]
[1764508887278,0.4612,3044.8,3044.1,0.72559411]
[1764508887279,3.74552092,3044.8,3044.1,0.72559411]
[1764508887683,3.74552092,3044.8,3043.5,3.28564742]
[1764508887684,0.4612,3044.7,3043.3,0.4552]
[1764508887883,0.1931,3044.9,3043.5,1.18079411]
[1764508888184,0.213,3045.0,3043.8,0.72559411]
[1764508888395,0.213,3045.0,3043.9,0.48805259]
[1764508888799,0.213,3045.0,3043.9,0.4552]
[1764508888981,0.6543,3045.5,3043.9,0.48805259]
[1764508889190,0.213,3045.5,3044.1,0.405504]
[1764508889400,0.213,3045.5,3044.2,0.03284935]
[1764508889599,0.4612,3045.4,3044.2,0.1903]
[1764508889984,0.1,3045.5,3044.2,0.1903]
[1764508890190,0.1197,3045.9,3044.5,0.72559411]
[1764508890385,0.1197,3045.9,3044.6,0.03284503]
[1764508890624,0.1197,3045.9,3044.7,0.4552]
[1764508891416,0.5809,3045.9,3044.7,0.4552]
[1764508891825,0.213,3045.8,3044.7,0.4552]
[1764508891992,0.5809,3045.9,3044.7,0.4552]
[1764508892331,0.213,3045.8,3044.9,0.72559411]
[1764508892489,0.6742,3045.8,3044.9,0.72559411]
[1764508892697,0.6742,3045.8,3044.9,0.75843591]
[1764508892890,0.213,3045.8,3044.9,1.21363591]
[1764508893107,0.1197,3045.9,3044.9,0.75843591]
[1764508893296,0.1197,3045.9,3045.0,0.4552]
[1764508893499,0.4612,3045.8,3044.9,0.72559411]
[1764508894329,0.4906,3045.0,3044.2,0.1903]
[1764508894539,0.5809,3045.9,3044.9,0.4854]
[1764508894744,0.213,3045.8,3044.9,0.4854]
[1764508894953,0.6742,3045.8,3044.4,1.18079411]
[1764508895342,0.6742,3045.8,3044.5,0.4552]
[1764508895530,0.4612,3045.7,3044.5,0.4552]
[1764508896251,0.4612,3045.7,3044.7,0.72559411]
[1764508897165,0.4612,3045.7,3044.8,0.03284287]
[1764508897468,0.213,3045.6,3044.8,0.03284287]
[1764508897620,0.4612,3045.7,3044.7,0.72559411]
[1764508897826,0.213,3045.5,3044.7,0.72559411]
[1764508898062,0.1197,3045.9,3044.7,0.72559411]
[1764508898225,0.7939,3045.9,3044.8,9.85286388]
[1764508898424,0.7939,3045.9,3044.9,0.72559411]
[1764508898726,0.4612,3045.8,3044.9,0.72559411]
[1764508899238,0.4906,3045.0,3044.5,0.72559411]
[1764508899438,0.4612,3045.8,3044.5,1.18079411]
[1764508899650,0.4612,3045.8,3044.6,0.4552]
[1764508899855,0.214,3045.7,3044.6,0.4552]
[1764508900556,0.1197,3045.9,3044.8,0.72559411]
[1764508900557,0.3337,3045.9,3044.8,0.72559411]
[1764508900928,0.3337,3045.9,3044.9,0.4552]
[1764508901143,0.3327,3045.9,3044.9,0.4552]
[1764508901347,0.3327,3045.9,3045.0,0.03284072]
[1764508901768,0.006,3046.6,3045.8,0.4854]
[1764508901970,0.006,3046.6,3045.9,1.06530385]
[1764508902158,0.006,3046.6,3045.9,0.213]
[1764508902363,0.006,3046.6,3045.7,0.72559411]
[1764508902975,0.4612,3046.5,3045.7,0.72559411]
[1764508903178,0.83614412,3046.5,3045.7,0.72559411]
[1764508905688,0.006,3046.6,3046.1,0.1903]
[1764508906182,0.006,3046.6,3046.0,0.72559411]
[1764508906484,0.4672,3046.6,3046.2,0.72559411]
[1764508906698,0.006,3046.6,3046.5,0.4854]
[1764508907052,0.006,3046.6,3046.2,1.18079411]
[1764508907675,0.006,3046.6,3046.2,1.21362189]
[1764508907888,0.006,3046.6,3046.2,0.72559411]
[1764508908255,0.006,3046.6,3046.2,0.75842189]
[1764508908453,0.006,3046.6,3046.4,0.72559411]
[1764508909201,0.006,3046.6,3046.5,0.4854]
[1764508909405,0.006,3046.6,3046.4,0.72559411]
[1764508909984,0.006,3046.6,3045.7,0.4552]
[1764508910183,0.006,3046.6,3046.0,0.72559411]
[1764508910403,0.006,3046.6,3046.2,6.56555708]
[1764508910604,0.006,3046.6,3046.2,9.84833562]
[1764508910906,0.006,3046.6,3046.5,0.4854]
[1764508911073,0.006,3046.6,3046.3,1.18079411]
[1764508911278,0.006,3046.6,3046.5,0.4854]
[1764508911677,0.006,3046.6,3046.5,0.9406]
[1764508912009,0.006,3046.6,3046.5,0.4854]
[1764508912313,0.006,3046.6,3046.3,0.72559411]
[1764508912603,0.006,3046.6,3046.5,0.72559411]
[1764508912806,0.006,3046.6,3046.3,4.00822165]
[1764508912971,0.458,3046.6,3046.4,0.72559411]
[1764508913175,0.458,3046.6,3046.3,0.72559411]
[1764508913411,0.006,3046.6,3046.3,0.72559411]
[1764508913707,0.459,3046.4,3046.3,0.72559411]
[1764508914211,0.459,3046.4,3045.5,6.56706616]
[1764508914212,0.9034,3046.4,3045.5,6.56706616]
[1764508914411,0.006,3046.6,3045.6,0.03283425]
[1764508914611,0.006,3046.6,3045.7,6.56663492]
[1764508914804,0.458,3046.6,3045.8,0.7584262]
[1764508915201,0.672,3046.6,3045.8,0.7584262]
[1764508915405,0.458,3046.6,3045.8,0.72559411]
[1764508915608,0.006,3046.6,3045.9,0.7002]
[1764508915803,0.006,3046.6,3046.0,0.03282994]
[1764508916303,0.006,3046.6,3046.1,0.4862]
[1764508916507,0.006,3046.6,3046.3,0.72559411]
[1764508916914,0.006,3046.6,3046.4,0.03282563]
[1764508918613,0.459,3046.5,3046.4,0.72559411]
[1764508918994,0.8975,3046.5,3045.8,0.85230385]
[1764508919196,0.8975,3046.5,3046.3,0.001]
[1764508919197,0.4455,3046.5,3046.3,0.001]
[1764508919395,0.8974,3046.5,3046.3,0.001]
[1764508919609,0.0045,3046.4,3046.3,0.001]
[1764508919818,0.006,3046.6,3046.3,0.001]
[1764508920189,0.459,3046.4,3046.3,0.001]
[1764508920396,0.8975,3046.4,3046.3,0.001]
[1764508920613,0.22,3046.6,3046.3,0.001]
[1764508920832,0.4455,3046.4,3046.3,0.001]
[1764508921416,0.8974,3046.4,3046.3,0.001]
[1764508921599,0.9974,3046.4,3046.3,0.001]
[1764508921796,1.75421743,3046.4,3046.3,0.001]
[1764508922509,0.1,3046.1,3045.1,3.2839644]
[1764508922693,0.6367,3045.2,3045.0,3.28407224]
[1764508923094,0.6367,3045.2,3044.8,3.28428796]
[1764508923095,0.4583,3045.1,3044.8,3.28428796]
[1764508923295,0.214,3045.3,3044.8,3.28428796]
[1764508923529,0.199,3045.4,3044.8,3.28428796]
[1764508923530,0.452,3045.2,3044.8,3.28428796]
[1764508923713,0.666,3045.2,3044.8,3.28428796]
[1764508924027,0.2427,3044.9,3044.6,6.56998923]
[1764508924234,0.1936,3044.7,3044.6,0.001]
[1764508924650,0.8596,3044.7,3044.6,0.001]
[1764508925534,0.6456,3044.7,3044.6,0.001]
[1764508925722,0.4076,3044.7,3044.6,0.001]
[1764508926617,0.452,3045.1,3044.6,0.72659411]
[1764508926810,0.214,3045.0,3044.6,0.72659411]
[1764508927317,0.452,3045.1,3044.7,0.03284395]
[1764508927318,0.214,3045.1,3044.7,0.03284395]
[1764508927656,0.214,3045.1,3044.6,0.72659411]
[1764508928011,0.452,3045.0,3044.6,0.72659411]
[1764508928219,0.4338,3044.7,3044.6,0.72659411]
[1764508928623,0.8856,3044.7,3044.6,4.01109782]
[1764508928821,0.8856,3044.7,3044.6,0.72659411]
[1764508929247,0.8856,3044.7,3044.6,0.001]
[1764508929553,1.30258515,3044.7,3044.6,0.001]
[1764508929754,0.8856,3044.7,3044.6,0.001]
[1764508929947,1.0996,3044.7,3044.6,0.001]
[1764508931223,0.8856,3044.7,3044.6,0.001]
[1764508931556,0.4338,3044.7,3044.6,0.001]
[1764508931978,0.6468,3044.7,3044.6,0.001]
[1764508932556,1.0988,3044.7,3044.6,0.001]
[1764508934850,0.4338,3044.7,3044.6,0.001]
[1764508935050,0.6468,3044.7,3044.6,0.001]
[1764508935865,0.452,3044.9,3044.6,0.001]
[1764508936066,0.213,3044.8,3044.6,0.001]
[1764508936573,0.452,3045.2,3044.6,0.001]
[1764508936780,0.213,3045.1,3044.6,0.001]
[1764508936945,0.213,3045.0,3044.7,0.72559411]
[1764508937146,0.213,3045.0,3044.7,0.75843806]
[1764508937344,0.665,3045.0,3044.7,0.75843806]
[1764508937961,0.452,3045.2,3044.7,0.72559411]
[1764508938273,0.213,3044.9,3044.7,0.72559411]
[1764508938777,0.459,3044.8,3044.7,0.72559411]
[1764508938941,0.213,3044.9,3044.8,4.00988207]
[1764508939368,0.452,3045.2,3044.8,4.00988207]
[1764508939608,0.213,3045.1,3044.8,7.29417003]
[1764508940577,0.199,3045.4,3044.8,7.29417003]
[1764508940772,0.213,3045.3,3044.8,7.29417003]
[1764508941370,0.213,3045.2,3044.8,7.78037003]
[1764508941696,0.459,3044.9,3044.8,4.00988207]
[1764508942068,0.459,3044.9,3044.8,0.72559411]
[1764508942069,0.911,3044.9,3044.8,0.72559411]
[1764508942410,0.911,3044.9,3044.7,0.72559411]
[1764508942581,0.911,3044.9,3044.6,3.28547135]
[1764508942582,0.4514,3044.7,3044.6,0.001]
[1764508942788,0.9239,3044.7,3044.6,0.001]
[1764508943603,0.4514,3044.7,3044.6,0.001]
[1764508943903,0.9239,3044.7,3044.6,0.001]
[1764508944310,0.6644,3044.7,3044.6,0.001]
[1764508944487,1.1369,3044.7,3044.6,0.001]
[1764508945215,0.6644,3044.7,3044.6,0.001]
[1764508945420,1.1369,3044.7,3044.6,0.001]
[1764508945917,1.2369,3044.7,3044.6,0.001]
[1764508946215,1.68902834,3044.7,3044.6,0.001]
[1764508946427,1.2369,3044.7,3044.6,0.001]
[1764508946920,4.52129583,3044.7,3044.6,0.001]
[1764508947488,4.42129583,3044.7,3044.6,0.001]
[1764508947719,4.30829583,3044.7,3044.6,0.001]
[1764508948017,4.92679983,3044.7,3044.6,0.001]
[1764508948195,5.74789794,3044.7,3044.6,0.001]
[1764508948589,5.74789794,3044.7,3044.5,0.001]
[1764508948792,0.1,3043.9,3043.4,0.001]
[1764508948990,0.5169,3043.5,3043.4,0.001]
[1764508949400,0.9894,3043.5,3043.4,0.001]
[1764508949813,4.27509081,3043.5,3043.4,0.001]
[1764508950122,1.75545987,3043.5,3043.4,0.001]
[1764508950313,0.9894,3043.5,3043.4,0.001]
[1764508950705,0.6553,3043.9,3043.4,0.001]
[1764508951024,0.213,3043.8,3043.4,0.001]
[1764508951407,0.4514,3043.5,3043.4,0.001]
[1764508951792,0.9239,3043.5,3043.4,0.001]
[1764508952215,1.0239,3043.5,3043.4,0.001]
[1764508952992,1.2369,3043.5,3043.4,0.001]
[1764508953531,4.52259081,3043.5,3043.4,0.001]
[1764508953830,0.405504,3043.4,3042.0,0.1801]
[1764508954123,0.1,3043.0,3042.6,0.0008]
[1764508954325,0.5238,3042.7,3042.0,6.75469294]
[1764508954516,0.5238,3042.7,3042.1,0.0008]
[1764508954713,0.5238,3042.7,3042.1,0.72639411]
[1764508954913,0.9963,3042.7,3042.1,0.72639411]
[1764508955232,0.213,3042.6,3042.2,0.48517094]
[1764508955398,0.213,3042.5,3042.4,0.72559411]
[1764508955597,0.6553,3043.1,3042.5,0.4876]
[1764508955916,0.213,3042.7,3042.5,0.4876]
[1764508957427,0.213,3042.7,3042.5,0.0008]
[1764508957729,0.4514,3042.6,3042.5,0.0008]
[1764508958030,0.4514,3042.6,3042.5,0.72639411]
[1764508958224,0.6855,3042.7,3042.5,0.72639411]
[1764508958225,0.213,3042.7,3042.5,0.72639411]
[1764508959839,0.213,3042.7,3042.5,4.01307766]
[1764508960204,0.213,3042.7,3042.5,4.04594536]
[1764508961028,0.213,3042.7,3042.5,3.32040044]
[1764508961235,0.213,3042.7,3042.6,0.03286662]
[1764508961631,0.213,3042.7,3042.6,0.51966662]
[1764508962036,0.213,3042.7,3042.6,3.80632934]
[1764508963038,0.213,3042.7,3042.6,4.53192345]
[1764508963334,0.1828,3043.1,3042.6,7.81858617]
[1764508963533,0.212,3042.8,3042.6,7.78571955]
[1764508963939,0.212,3042.8,3042.7,0.4868]
[1764508964258,0.212,3042.8,3042.7,4.95124881]
[1764508964440,0.4725,3043.6,3042.8,0.72559411]
[1764508964639,0.212,3043.5,3042.8,1.21075857]
[1764508964949,0.1828,3043.9,3042.8,0.75845857]
[1764508965113,0.212,3043.8,3043.4,0.4868]
[1764508965518,0.4725,3043.7,3042.9,0.4523]
[1764508966220,0.4725,3043.7,3043.1,0.72559411]
[1764508966915,0.1,3043.6,3043.1,0.72559411]
[1764508967112,0.4514,3043.2,3043.1,0.72559411]
[1764508967324,0.4514,3043.2,3042.9,3.28629124]
[1764508967641,0.4514,3043.2,3043.0,0.72559411]
[1764508968141,0.4514,3043.2,3043.0,3.28622377]
[1764508968345,0.4514,3043.2,3042.9,3.28632575]
[1764508968641,0.212,3043.3,3042.8,0.03286446]
[1764508968843,0.212,3043.3,3042.5,0.4851677]
[1764508969016,0.212,3043.3,3042.5,0.4875677]
[1764508969338,0.212,3043.6,3043.2,0.4868]
[1764508969542,0.212,3043.6,3042.8,0.72559411]
[1764508969748,0.6845,3043.6,3042.8,0.72559411]
[1764508970044,0.212,3043.6,3042.9,0.4523]
[1764508970239,0.212,3043.6,3043.1,0.72559411]
[1764508970441,0.212,3043.7,3043.5,0.4868]
[1764508970627,0.212,3043.7,3043.2,0.6326]
[1764508971023,0.212,3043.7,3043.1,0.72559411]
[1764508971228,0.4725,3043.6,3043.1,0.72559411]
[1764508972313,0.4725,3043.6,3043.1,3.28610047]
[1764508972517,0.4725,3043.6,3042.7,0.4523]
[1764508972518,3.75808623,3043.6,3042.8,3.28641918]
[1764508972713,7.04367246,3043.6,3043.0,0.72559411]
[1764508972915,0.1,3043.4,3042.6,3.28656161]